[Event "Late-Titled-Tuesday-Blitz-September-12-2023"]
[Site "Chess.com"]
[Date "2023.09.12"]
[Round "1"]
[White "Zkid"]
[Black "Schattman"]
[Result "1-0"]
[WhiteElo "2909"]
[BlackElo "2463"]
[TimeControl "180+1"]
[EndTime "14:06:37 PDT"]
[Termination "Zkid won on time"]

1. e4 {[%clk 0:03:00.9]} 1... c5 {[%clk 0:02:59.4]} 2. Nf3 {[%clk 0:03:01]} 2...
e6 {[%clk 0:02:57.2]} 3. d4 {[%clk 0:03:01.1]} 3... cxd4 {[%clk 0:02:57.4]} 4.
Nxd4 {[%clk 0:03:02]} 4... Nf6 {[%clk 0:02:57.8]} 5. Nc3 {[%clk 0:03:02.3]} 5...
Nc6 {[%clk 0:02:58.2]} 6. Ndb5 {[%clk 0:03:01.4]} 6... Bb4 {[%clk 0:02:57.4]} 7.
a3 {[%clk 0:03:01.2]} 7... Bxc3+ {[%clk 0:02:57.6]} 8. Nxc3 {[%clk 0:03:02.1]}
8... d5 {[%clk 0:02:57.9]} 9. exd5 {[%clk 0:03:02.7]} 9... exd5 {[%clk
0:02:58.8]} 10. Bd3 {[%clk 0:03:03.1]} 10... O-O {[%clk 0:02:58.7]} 11. O-O
{[%clk 0:03:02.7]} 11... Bg4 {[%clk 0:02:58.5]} 12. f3 {[%clk 0:03:02.1]} 12...
Bh5 {[%clk 0:02:58.4]} 13. Bg5 {[%clk 0:02:58.6]} 13... Qb6+ {[%clk 0:02:55.1]}
14. Kh1 {[%clk 0:02:58.7]} 14... Ne4 {[%clk 0:02:55.1]} 15. Nxe4 {[%clk
0:02:57]} 15... dxe4 {[%clk 0:02:56]} 16. Bxe4 {[%clk 0:02:57.4]} 16... Qxb2
{[%clk 0:02:37.8]} 17. Qd6 {[%clk 0:02:53]} 17... Bg6 {[%clk 0:02:26.8]} 18.
Rab1 {[%clk 0:02:46.1]} 18... Qc3 {[%clk 0:02:17.1]} 19. Bd5 {[%clk 0:02:35.5]}
19... Qe5 {[%clk 0:01:29.7]} 20. Qxe5 {[%clk 0:02:28.6]} 20... Nxe5 {[%clk
0:01:29.6]} 21. Rxb7 {[%clk 0:02:27.2]} 21... Rac8 {[%clk 0:01:14.6]} 22. f4
{[%clk 0:02:14.9]} 22... Nc4 {[%clk 0:01:01]} 23. f5 {[%clk 0:02:09]} 23... Bh5
{[%clk 0:01:00.8]} 24. Rxa7 {[%clk 0:01:59.2]} 24... h6 {[%clk 0:00:51.4]} 25.
Bc1 {[%clk 0:01:49.9]} 25... Rfd8 {[%clk 0:00:48.4]} 26. Be4 {[%clk 0:01:43.3]}
26... Nd2 {[%clk 0:00:31.4]} 27. Bxd2 {[%clk 0:01:42.2]} 27... Rxd2 {[%clk
0:00:31.2]} 28. h3 {[%clk 0:01:38.9]} 28... Re8 {[%clk 0:00:29.6]} 29. Ra4
{[%clk 0:01:23.4]} 29... Be2 {[%clk 0:00:26.8]} 30. Rf2 {[%clk 0:01:23.3]} 30...
Rd1+ {[%clk 0:00:25]} 31. Kh2 {[%clk 0:01:23.6]} 31... Bb5 {[%clk 0:00:24.6]}
32. Rb4 {[%clk 0:01:22.4]} 32... Bd7 {[%clk 0:00:24.1]} 33. f6 {[%clk
0:01:21.3]} 33... gxf6 {[%clk 0:00:20.5]} 34. Rxf6 {[%clk 0:01:19.4]} 34... Kg7
{[%clk 0:00:18]} 35. Rf3 {[%clk 0:01:19.5]} 35... Re1 {[%clk 0:00:16.6]} 36. Bd3
{[%clk 0:01:16.5]} 36... Bc6 {[%clk 0:00:16.8]} 37. Rg3+ {[%clk 0:01:16]} 37...
Kf6 {[%clk 0:00:13.6]} 38. Rf4+ {[%clk 0:01:12.8]} 38... Ke7 {[%clk 0:00:11.9]}
39. Bc4 {[%clk 0:01:12.9]} 39... Rf8 {[%clk 0:00:09.7]} 40. Rg7 {[%clk
0:01:12.7]} 40... Kd6 {[%clk 0:00:05.4]} 41. Bxf7 {[%clk 0:01:04.7]} 1-0

[Event "Late-Titled-Tuesday-Blitz-September-12-2023"]
[Site "Chess.com"]
[Date "2023.09.12"]
[Round "1"]
[White "Veleamater"]
[Black "ahkashefi2800"]
[Result "0-1"]
[WhiteElo "2301"]
[BlackElo "2604"]
[TimeControl "180+1"]
[EndTime "14:06:37 PDT"]
[Termination "ahkashefi2800 won by resignation"]

1. g3 {[%clk 0:03:00.8]} 1... d5 {[%clk 0:02:45.1]} 2. Bg2 {[%clk 0:03:01.7]}
2... Nf6 {[%clk 0:02:43.4]} 3. d3 {[%clk 0:03:01.4]} 3... c6 {[%clk 0:02:41.8]}
4. h3 {[%clk 0:03:01.8]} 4... Bf5 {[%clk 0:02:40.3]} 5. Nf3 {[%clk 0:03:01.4]}
5... e6 {[%clk 0:02:38.2]} 6. O-O {[%clk 0:03:01.9]} 6... Nbd7 {[%clk
0:02:34.5]} 7. Nc3 {[%clk 0:03:02.4]} 7... Bc5 {[%clk 0:02:31]} 8. Bf4 {[%clk
0:03:02.3]} 8... O-O {[%clk 0:02:29.7]} 9. Ne5 {[%clk 0:03:01.5]} 9... Nxe5
{[%clk 0:02:27.6]} 10. Bxe5 {[%clk 0:03:01.8]} 10... Nd7 {[%clk 0:02:27.3]} 11.
Bf4 {[%clk 0:03:01.4]} 11... e5 {[%clk 0:02:25.9]} 12. Bd2 {[%clk 0:03:00.2]}
12... Re8 {[%clk 0:02:24.2]} 13. e4 {[%clk 0:03:00]} 13... dxe4 {[%clk
0:02:20.8]} 14. dxe4 {[%clk 0:02:59.6]} 14... Bg6 {[%clk 0:02:20]} 15. Kh2
{[%clk 0:02:59.7]} 15... Nf8 {[%clk 0:02:18.9]} 16. Qc1 {[%clk 0:02:58.5]} 16...
Ne6 {[%clk 0:02:16.8]} 17. f4 {[%clk 0:02:58.5]} 17... exf4 {[%clk 0:02:15.5]}
18. gxf4 {[%clk 0:02:58.6]} 18... Qc7 {[%clk 0:02:11.9]} 19. Kh1 {[%clk
0:02:55.5]} 19... f5 {[%clk 0:02:06.3]} 20. e5 {[%clk 0:02:52.3]} 20... Rad8
{[%clk 0:02:02.3]} 21. a3 {[%clk 0:02:52.1]} 21... Qe7 {[%clk 0:01:47.5]} 22.
Be3 {[%clk 0:02:51.2]} 22... Qh4 {[%clk 0:01:43.9]} 23. Kh2 {[%clk 0:02:48]}
23... Rd7 {[%clk 0:01:39.4]} 24. Bxc5 {[%clk 0:02:36.4]} 24... Nxc5 {[%clk
0:01:38.9]} 25. Qe3 {[%clk 0:02:36]} 25... Ne6 {[%clk 0:01:35.9]} 26. Rf2 {[%clk
0:02:31.6]} 26... a6 {[%clk 0:01:27.8]} 27. Rg1 {[%clk 0:02:30.9]} 27... Red8
{[%clk 0:01:26.5]} 28. Bf1 {[%clk 0:01:25.5]} 28... Rd4 {[%clk 0:01:21.8]} 29.
Ne2 {[%clk 0:01:24.4]} 29... Re4 {[%clk 0:01:19.1]} 30. Qg3 {[%clk 0:01:21.8]}
30... Qxg3+ {[%clk 0:01:15]} 31. Nxg3 {[%clk 0:01:21.9]} 31... Rxf4 {[%clk
0:01:12]} 32. Rxf4 {[%clk 0:01:21.7]} 32... Nxf4 {[%clk 0:01:10.1]} 33. Bc4+
{[%clk 0:01:22.2]} 33... Kf8 {[%clk 0:01:07]} 34. Rf1 {[%clk 0:01:19.3]} 34...
Rd2+ {[%clk 0:01:07.1]} 35. Kh1 {[%clk 0:01:17.6]} 35... Nxh3 {[%clk 0:01:06.1]}
36. Nxf5 {[%clk 0:01:17.1]} 36... Nf2+ {[%clk 0:01:01.8]} 37. Kg1 {[%clk
0:01:16.6]} 37... Bxf5 {[%clk 0:01:00.9]} 38. Rxf2 {[%clk 0:01:15.2]} 38... Rxf2
{[%clk 0:01:00.7]} 39. Kxf2 {[%clk 0:01:15.5]} 39... Bxc2 {[%clk 0:01:01.6]} 40.
Be6 {[%clk 0:01:15.4]} 40... a5 {[%clk 0:00:59.8]} 41. Bc8 {[%clk 0:01:13.3]}
41... b6 {[%clk 0:00:59.4]} 42. Ke3 {[%clk 0:01:12.8]} 42... Ke7 {[%clk
0:00:59]} 43. Kf4 {[%clk 0:01:12.7]} 43... h6 {[%clk 0:00:58.3]} 44. Bg4 {[%clk
0:01:09.3]} 44... g5+ {[%clk 0:00:57.8]} 45. Ke3 {[%clk 0:01:08.4]} 45... Bg6
{[%clk 0:00:57.1]} 46. Kd4 {[%clk 0:01:07]} 46... h5 {[%clk 0:00:56.5]} 47. Bc8
{[%clk 0:01:06.8]} 47... h4 {[%clk 0:00:54.8]} 48. Bg4 {[%clk 0:01:05.2]} 48...
Be8 {[%clk 0:00:55.1]} 49. e6 {[%clk 0:01:04.7]} 49... Bg6 {[%clk 0:00:55.3]}
50. Ke5 {[%clk 0:01:04.8]} 50... Bd3 {[%clk 0:00:54.5]} 51. b4 {[%clk
0:01:04.1]} 51... c5 {[%clk 0:00:50.9]} 52. bxc5 {[%clk 0:01:03.7]} 52... bxc5
{[%clk 0:00:51.8]} 53. Kd5 {[%clk 0:01:03.5]} 53... c4 {[%clk 0:00:52.3]} 54.
Kd4 {[%clk 0:01:03.9]} 54... Bf1 {[%clk 0:00:52.6]} 55. Bf5 {[%clk 0:00:59.4]}
55... h3 {[%clk 0:00:52.8]} 0-1

[Event "Late-Titled-Tuesday-Blitz-September-12-2023"]
[Site "Chess.com"]
[Date "2023.09.12"]
[Round "1"]
[White "JackRodgers"]
[Black "AlexNovitz"]
[Result "1-0"]
[WhiteElo "2530"]
[BlackElo "2180"]
[TimeControl "180+1"]
[EndTime "14:06:37 PDT"]
[Termination "JackRodgers won by checkmate"]

1. d4 {[%clk 0:03:00.9]} 1... Nf6 {[%clk 0:02:59.4]} 2. Bg5 {[%clk 0:03:00.6]}
2... Ne4 {[%clk 0:02:58.6]} 3. h4 {[%clk 0:03:00.5]} 3... h6 {[%clk 0:02:57.9]}
4. Bf4 {[%clk 0:03:00.1]} 4... d5 {[%clk 0:02:57.3]} 5. Nd2 {[%clk 0:02:59.9]}
5... Bf5 {[%clk 0:02:56.3]} 6. Nxe4 {[%clk 0:02:58.9]} 6... Bxe4 {[%clk
0:02:56]} 7. f3 {[%clk 0:02:59]} 7... Bh7 {[%clk 0:02:55.7]} 8. e3 {[%clk
0:02:59.4]} 8... e6 {[%clk 0:02:53.8]} 9. Bd3 {[%clk 0:02:59.4]} 9... Bxd3
{[%clk 0:02:52.4]} 10. Qxd3 {[%clk 0:03:00.3]} 10... c6 {[%clk 0:02:47.4]} 11.
O-O-O {[%clk 0:02:59.1]} 11... Bd6 {[%clk 0:02:46.7]} 12. Ne2 {[%clk 0:02:57.3]}
12... Bxf4 {[%clk 0:02:42.4]} 13. Nxf4 {[%clk 0:02:57]} 13... Nd7 {[%clk
0:02:41.9]} 14. e4 {[%clk 0:02:50.2]} 14... Qa5 {[%clk 0:02:35.7]} 15. Kb1
{[%clk 0:02:49]} 15... O-O-O {[%clk 0:02:28.7]} 16. e5 {[%clk 0:02:46.1]} 16...
g5 {[%clk 0:02:23.4]} 17. hxg5 {[%clk 0:02:39.4]} 17... hxg5 {[%clk 0:02:24.3]}
18. Ne2 {[%clk 0:02:38.7]} 18... c5 {[%clk 0:02:17.9]} 19. Rh7 {[%clk
0:02:15.6]} 19... Rdf8 {[%clk 0:01:52]} 20. c3 {[%clk 0:01:58.5]} 20... cxd4
{[%clk 0:01:24.9]} 21. cxd4 {[%clk 0:01:56.9]} 21... Nb6 {[%clk 0:01:21.1]} 22.
Rc1+ {[%clk 0:01:50.2]} 22... Kb8 {[%clk 0:01:21.2]} 23. b3 {[%clk 0:01:35.6]}
23... Rxh7 {[%clk 0:01:12.3]} 24. Qxh7 {[%clk 0:01:36.5]} 24... Qd2 {[%clk
0:01:05.5]} 25. Rc2 {[%clk 0:01:28.5]} 25... Qd1+ {[%clk 0:01:00.7]} 26. Kb2
{[%clk 0:01:28.7]} 26... Rc8 {[%clk 0:00:56.4]} 27. Rxc8+ {[%clk 0:01:28]} 27...
Nxc8 {[%clk 0:00:53.1]} 28. Qc2 {[%clk 0:01:26.7]} 28... Qf1 {[%clk 0:00:35.7]}
29. Nc1 {[%clk 0:01:16.6]} 29... Ne7 {[%clk 0:00:29.1]} 30. Qe2 {[%clk
0:00:55.9]} 30... Qg1 {[%clk 0:00:27.8]} 31. Qd2 {[%clk 0:00:36.5]} 31... Nc6
{[%clk 0:00:26.3]} 32. Qxg5 {[%clk 0:00:31.1]} 32... Qxd4+ {[%clk 0:00:22.4]}
33. Kb1 {[%clk 0:00:31.8]} 33... Nxe5 {[%clk 0:00:20]} 34. Qd8# {[%clk
0:00:31.6]} 1-0

[Event "Late-Titled-Tuesday-Blitz-September-12-2023"]
[Site "Chess.com"]
[Date "2023.09.12"]
[Round "1"]
[White "Casper"]
[Black "moro182"]
[Result "1-0"]
[WhiteElo "2471"]
[BlackElo "2843"]
[TimeControl "180+1"]
[EndTime "14:06:40 PDT"]
[Termination "Casper won by checkmate"]

1. e4 {[%clk 0:02:14.5]} 1... g6 {[%clk 0:03:00.9]} 2. d4 {[%clk 0:02:09.3]}
2... Bg7 {[%clk 0:02:53.9]} 3. Nf3 {[%clk 0:02:07.4]} 3... d6 {[%clk 0:02:53]}
4. Be2 {[%clk 0:02:07.4]} 4... Nf6 {[%clk 0:02:50.5]} 5. O-O {[%clk 0:02:07.9]}
5... O-O {[%clk 0:02:50]} 6. Nc3 {[%clk 0:02:04.2]} 6... a6 {[%clk 0:02:50]} 7.
a4 {[%clk 0:02:03.3]} 7... Nc6 {[%clk 0:02:50.3]} 8. h3 {[%clk 0:02:00.4]} 8...
e5 {[%clk 0:02:49.4]} 9. Be3 {[%clk 0:01:55.7]} 9... exd4 {[%clk 0:02:47.4]} 10.
Nxd4 {[%clk 0:01:54.6]} 10... Bd7 {[%clk 0:02:48.3]} 11. Bc4 {[%clk 0:01:45.1]}
11... Re8 {[%clk 0:02:44.2]} 12. Re1 {[%clk 0:01:19.8]} 12... Ne5 {[%clk
0:02:37.9]} 13. Bb3 {[%clk 0:01:12.9]} 13... c5 {[%clk 0:02:37.1]} 14. Nf3
{[%clk 0:01:10.1]} 14... Bc6 {[%clk 0:02:33.7]} 15. Nxe5 {[%clk 0:01:06.1]}
15... Rxe5 {[%clk 0:02:33.4]} 16. Bf4 {[%clk 0:01:06.2]} 16... Rxe4 {[%clk
0:02:23.5]} 17. Nxe4 {[%clk 0:01:03.5]} 17... Nxe4 {[%clk 0:02:24.4]} 18. Bd5
{[%clk 0:00:52.5]} 18... Nxf2 {[%clk 0:01:55.7]} 19. Qf3 {[%clk 0:00:26.9]}
19... Bxd5 {[%clk 0:01:41.4]} 20. Qxd5 {[%clk 0:00:27.8]} 20... Bd4 {[%clk
0:01:41.2]} 21. Be3 {[%clk 0:00:28.4]} 21... Qh4 {[%clk 0:01:21.6]} 22. Bxd4
{[%clk 0:00:26.9]} 22... cxd4 {[%clk 0:01:22.5]} 23. Rf1 {[%clk 0:00:25.1]}
23... Nxh3+ {[%clk 0:01:06.5]} 24. gxh3 {[%clk 0:00:26]} 24... Rf8 {[%clk
0:01:06]} 25. Rf3 {[%clk 0:00:21.4]} 25... d3 {[%clk 0:01:02.9]} 26. cxd3 {[%clk
0:00:20.2]} 26... Qe7 {[%clk 0:00:59.5]} 27. Raf1 {[%clk 0:00:19.9]} 27... h5
{[%clk 0:00:56.8]} 28. Kg2 {[%clk 0:00:19.3]} 28... Kg7 {[%clk 0:00:56.7]} 29.
Qd4+ {[%clk 0:00:18.9]} 29... f6 {[%clk 0:00:57]} 30. Re3 {[%clk 0:00:18.4]}
30... Qd7 {[%clk 0:00:55.8]} 31. Rfe1 {[%clk 0:00:18.4]} 31... Rf7 {[%clk
0:00:55.9]} 32. Qd5 {[%clk 0:00:18.2]} 32... Qc7 {[%clk 0:00:55.4]} 33. Qc4
{[%clk 0:00:17.7]} 33... Qd7 {[%clk 0:00:55.5]} 34. Re6 {[%clk 0:00:17]} 34...
d5 {[%clk 0:00:51.4]} 35. Qc5 {[%clk 0:00:16.7]} 35... b6 {[%clk 0:00:48.6]} 36.
Qd6 {[%clk 0:00:16.3]} 36... Qxa4 {[%clk 0:00:48.2]} 37. Re7 {[%clk 0:00:15]}
37... Rxe7 {[%clk 0:00:41.3]} 38. Rxe7+ {[%clk 0:00:15]} 38... Kh6 {[%clk
0:00:42.2]} 39. Qf4+ {[%clk 0:00:15.1]} 39... g5 {[%clk 0:00:42.3]} 40. Qxf6#
{[%clk 0:00:14.9]} 1-0

[Event "Late-Titled-Tuesday-Blitz-September-12-2023"]
[Site "Chess.com"]
[Date "2023.09.12"]
[Round "1"]
[White "GAO"]
[Black "RichardLeyvaP"]
[Result "1-0"]
[WhiteElo "2338"]
[BlackElo "2612"]
[TimeControl "180+1"]
[EndTime "14:06:41 PDT"]
[Termination "GAO won by resignation"]

1. d4 {[%clk 0:03:00.5]} 1... Nf6 {[%clk 0:02:55.1]} 2. Nf3 {[%clk 0:02:59.5]}
2... g6 {[%clk 0:02:54.5]} 3. Nbd2 {[%clk 0:02:56.6]} 3... Bg7 {[%clk
0:02:50.3]} 4. e4 {[%clk 0:02:55.3]} 4... d6 {[%clk 0:02:50.6]} 5. Bd3 {[%clk
0:02:52.5]} 5... O-O {[%clk 0:02:50.6]} 6. Qe2 {[%clk 0:02:50.7]} 6... c5 {[%clk
0:02:50.8]} 7. c3 {[%clk 0:02:49.3]} 7... cxd4 {[%clk 0:02:50.8]} 8. cxd4 {[%clk
0:02:48.3]} 8... Nc6 {[%clk 0:02:51.7]} 9. h3 {[%clk 0:02:44.3]} 9... Nb4 {[%clk
0:02:44.7]} 10. Nb1 {[%clk 0:02:36.4]} 10... d5 {[%clk 0:02:38.6]} 11. e5 {[%clk
0:02:33.9]} 11... Nxd3+ {[%clk 0:02:38.1]} 12. Qxd3 {[%clk 0:02:34.8]} 12... Bf5
{[%clk 0:02:38.4]} 13. Qe2 {[%clk 0:02:33.3]} 13... Ne4 {[%clk 0:02:34.8]} 14.
Nbd2 {[%clk 0:02:31.2]} 14... Rc8 {[%clk 0:02:33.3]} 15. O-O {[%clk 0:02:30.1]}
15... Rc2 {[%clk 0:02:28.8]} 16. Qd1 {[%clk 0:02:20.5]} 16... Nxd2 {[%clk
0:02:25]} 17. Nxd2 {[%clk 0:02:09.9]} 17... Qb6 {[%clk 0:02:17.8]} 18. Nb3
{[%clk 0:02:02.8]} 18... Rc7 {[%clk 0:02:05.2]} 19. Bg5 {[%clk 0:01:53.1]} 19...
h6 {[%clk 0:02:00.7]} 20. Be3 {[%clk 0:01:47.5]} 20... Rfc8 {[%clk 0:01:39.9]}
21. Rc1 {[%clk 0:01:38.2]} 21... Rxc1 {[%clk 0:01:37.7]} 22. Bxc1 {[%clk
0:01:39.1]} 22... Bc2 {[%clk 0:01:33.1]} 23. Qf3 {[%clk 0:01:35.4]} 23... Bxb3
{[%clk 0:01:30.7]} 24. Qxb3 {[%clk 0:01:34.7]} 24... Qxd4 {[%clk 0:00:59.6]} 25.
Qxb7 {[%clk 0:01:26.9]} 25... Rc2 {[%clk 0:00:58.6]} 26. e6 {[%clk 0:01:00.1]}
26... Bf6 {[%clk 0:00:39.1]} 27. Qb8+ {[%clk 0:00:35.1]} 27... Kg7 {[%clk
0:00:38.7]} 28. Bxh6+ {[%clk 0:00:28.7]} 28... Kxh6 {[%clk 0:00:37.9]} 29. exf7
{[%clk 0:00:28.8]} 29... Bg7 {[%clk 0:00:37.3]} 30. f8=Q {[%clk 0:00:24]} 30...
Bxf8 {[%clk 0:00:37.5]} 31. Qxf8+ {[%clk 0:00:24.1]} 31... Qg7 {[%clk
0:00:38.2]} 32. Qf4+ {[%clk 0:00:23.1]} 32... Kh7 {[%clk 0:00:37.8]} 33. Qh4+
{[%clk 0:00:18.3]} 33... Kg8 {[%clk 0:00:36.8]} 34. Re1 {[%clk 0:00:14.4]} 34...
Kf7 {[%clk 0:00:30.9]} 35. Rxe7+ {[%clk 0:00:13]} 1-0

[Event "Late-Titled-Tuesday-Blitz-September-12-2023"]
[Site "Chess.com"]
[Date "2023.09.12"]
[Round "1"]
[White "schack_vit"]
[Black "vugarrasulov"]
[Result "0-1"]
[WhiteElo "2473"]
[BlackElo "2952"]
[TimeControl "180+1"]
[EndTime "14:06:43 PDT"]
[Termination "vugarrasulov won by resignation"]

1. c4 {[%clk 0:02:57]} 1... Nf6 {[%clk 0:02:59.2]} 2. g3 {[%clk 0:02:54.2]} 2...
e6 {[%clk 0:02:57.8]} 3. Bg2 {[%clk 0:02:53.8]} 3... d5 {[%clk 0:02:58.5]} 4. d4
{[%clk 0:02:54.1]} 4... Bb4+ {[%clk 0:02:57.8]} 5. Bd2 {[%clk 0:02:53.8]} 5...
a5 {[%clk 0:02:57.2]} 6. Nf3 {[%clk 0:02:53.1]} 6... O-O {[%clk 0:02:55]} 7. O-O
{[%clk 0:02:53.1]} 7... dxc4 {[%clk 0:02:54.2]} 8. Qc2 {[%clk 0:02:51.8]} 8...
Bxd2 {[%clk 0:02:53.7]} 9. Nbxd2 {[%clk 0:02:51.6]} 9... b5 {[%clk 0:02:53.6]}
10. a4 {[%clk 0:02:50.5]} 10... c6 {[%clk 0:02:51.2]} 11. Rfd1 {[%clk
0:02:48.5]} 11... Bb7 {[%clk 0:02:50.4]} 12. b3 {[%clk 0:02:33.1]} 12... cxb3
{[%clk 0:02:40.2]} 13. Qxb3 {[%clk 0:02:34]} 13... b4 {[%clk 0:02:38.5]} 14. Ne5
{[%clk 0:02:24.2]} 14... Nbd7 {[%clk 0:02:31.1]} 15. Nd3 {[%clk 0:02:18]} 15...
Rc8 {[%clk 0:02:26.1]} 16. Rac1 {[%clk 0:02:13.2]} 16... Ba8 {[%clk 0:02:26.4]}
17. Nc4 {[%clk 0:01:46.2]} 17... Nd5 {[%clk 0:02:23.6]} 18. Nd6 {[%clk
0:01:24.1]} 18... Rc7 {[%clk 0:02:12.8]} 19. Ne4 {[%clk 0:01:23.6]} 19... Qe7
{[%clk 0:02:04.8]} 20. Rd2 {[%clk 0:01:18.9]} 20... Rd8 {[%clk 0:02:03.5]} 21.
e3 {[%clk 0:01:09]} 21... h6 {[%clk 0:02:03.4]} 22. Nec5 {[%clk 0:01:02]} 22...
Nxc5 {[%clk 0:02:01.5]} 23. Rxc5 {[%clk 0:00:59.7]} 23... Ra7 {[%clk 0:01:57.6]}
24. Rdc2 {[%clk 0:00:34.6]} 24... Nc3 {[%clk 0:01:56.7]} 25. h4 {[%clk
0:00:33.3]} 25... Bb7 {[%clk 0:01:49.4]} 26. Ne5 {[%clk 0:00:29.2]} 26... Raa8
{[%clk 0:01:41.9]} 27. Bxc6 {[%clk 0:00:26.8]} 27... Rdc8 {[%clk 0:01:42.1]} 28.
Qc4 {[%clk 0:00:23.2]} 28... Ba6 {[%clk 0:01:19.7]} 29. Bb5 {[%clk 0:00:22.4]}
29... Rxc5 {[%clk 0:01:17.1]} 30. dxc5 {[%clk 0:00:20.5]} 30... Bc8 {[%clk
0:01:15.5]} 31. c6 {[%clk 0:00:19.9]} 31... Qd6 {[%clk 0:01:12.1]} 32. Qd4
{[%clk 0:00:17.6]} 32... Qxd4 {[%clk 0:01:08.5]} 33. exd4 {[%clk 0:00:18.5]}
33... Nxb5 {[%clk 0:01:03.4]} 34. axb5 {[%clk 0:00:19.4]} 34... b3 {[%clk
0:01:04.1]} 35. Rb2 {[%clk 0:00:19]} 35... a4 {[%clk 0:01:04.7]} 36. b6 {[%clk
0:00:19.6]} 36... Rb8 {[%clk 0:00:54.6]} 37. b7 {[%clk 0:00:18]} 37... Bxb7
{[%clk 0:00:55]} 38. Nd7 {[%clk 0:00:17.8]} 38... Bxc6 {[%clk 0:00:53.1]} 39.
Nxb8 {[%clk 0:00:17.6]} 39... Bd5 {[%clk 0:00:53.8]} 40. Na6 {[%clk 0:00:12.5]}
40... a3 {[%clk 0:00:54]} 41. Rb1 {[%clk 0:00:09.6]} 41... a2 {[%clk 0:00:53.3]}
42. Ra1 {[%clk 0:00:08.5]} 42... b2 {[%clk 0:00:53.6]} 0-1

[Event "Late-Titled-Tuesday-Blitz-September-12-2023"]
[Site "Chess.com"]
[Date "2023.09.12"]
[Round "1"]
[White "GMKrikor"]
[Black "RIPOL"]
[Result "1-0"]
[WhiteElo "2879"]
[BlackElo "2460"]
[TimeControl "180+1"]
[EndTime "14:06:48 PDT"]
[Termination "GMKrikor won on time"]

1. Nf3 {[%clk 0:03:00.3]} 1... d5 {[%clk 0:02:58.6]} 2. c4 {[%clk 0:02:59.9]}
2... d4 {[%clk 0:02:57.6]} 3. b4 {[%clk 0:02:59.7]} 3... Bg4 {[%clk 0:02:54.3]}
4. g3 {[%clk 0:02:55.9]} 4... c6 {[%clk 0:02:27.3]} 5. Bg2 {[%clk 0:02:50.9]}
5... g6 {[%clk 0:01:51.7]} 6. O-O {[%clk 0:02:46.4]} 6... Bg7 {[%clk 0:01:51.5]}
7. d3 {[%clk 0:02:47.1]} 7... e5 {[%clk 0:01:47.9]} 8. a4 {[%clk 0:02:46.4]}
8... Ne7 {[%clk 0:01:41.2]} 9. Ba3 {[%clk 0:02:47]} 9... O-O {[%clk 0:01:39.8]}
10. Nbd2 {[%clk 0:02:47.1]} 10... Re8 {[%clk 0:01:37.7]} 11. b5 {[%clk
0:02:46.1]} 11... Nd7 {[%clk 0:01:29.8]} 12. Ne4 {[%clk 0:02:46.1]} 12... Nc8
{[%clk 0:01:00]} 13. h3 {[%clk 0:02:46.1]} 13... Bxf3 {[%clk 0:00:54.2]} 14.
exf3 {[%clk 0:02:47]} 14... Qc7 {[%clk 0:00:52.3]} 15. Re1 {[%clk 0:02:46.6]}
15... c5 {[%clk 0:00:46.1]} 16. a5 {[%clk 0:02:47]} 16... Rb8 {[%clk 0:00:43]}
17. f4 {[%clk 0:02:45.7]} 17... exf4 {[%clk 0:00:36.2]} 18. Bc1 {[%clk
0:02:45.7]} 18... Be5 {[%clk 0:00:28.5]} 19. Qf3 {[%clk 0:02:37.5]} 19... Kg7
{[%clk 0:00:26.5]} 20. gxf4 {[%clk 0:02:36.2]} 20... Bf6 {[%clk 0:00:24.5]} 21.
f5 {[%clk 0:02:26.5]} 21... Be5 {[%clk 0:00:22.4]} 22. Bg5 {[%clk 0:02:21.6]}
22... f6 {[%clk 0:00:20.4]} 23. Bd2 {[%clk 0:02:17.1]} 23... Nd6 {[%clk
0:00:19.2]} 24. h4 {[%clk 0:02:05.7]} 24... Nxe4 {[%clk 0:00:18.1]} 25. Rxe4
{[%clk 0:02:06.6]} 25... Re7 {[%clk 0:00:12.3]} 26. fxg6 {[%clk 0:02:04.1]}
26... hxg6 {[%clk 0:00:11.3]} 27. h5 {[%clk 0:02:04.9]} 27... g5 {[%clk
0:00:11.2]} 28. Qf5 {[%clk 0:02:04.9]} 28... Nf8 {[%clk 0:00:09.5]} 29. b6
{[%clk 0:02:00.4]} 29... axb6 {[%clk 0:00:08.7]} 30. axb6 {[%clk 0:02:01.3]}
30... Qd7 {[%clk 0:00:08.9]} 31. Qf3 {[%clk 0:01:37.8]} 31... Ne6 {[%clk
0:00:07.3]} 32. Bh3 {[%clk 0:01:37.5]} 32... Qd6 {[%clk 0:00:06.4]} 33. Rae1
{[%clk 0:01:29.3]} 33... Nf4 {[%clk 0:00:05.2]} 34. Bxf4 {[%clk 0:01:14.4]}
34... gxf4 {[%clk 0:00:04.8]} 35. Kh1 {[%clk 0:01:15.1]} 35... Kh6 {[%clk
0:00:04.8]} 36. Rxf4 {[%clk 0:00:55.8]} 36... Bxf4 {[%clk 0:00:03.4]} 37. Rxe7
{[%clk 0:00:55.5]} 37... Qxe7 {[%clk 0:00:03.3]} 38. Qxf4+ {[%clk 0:00:55.9]}
38... Kxh5 {[%clk 0:00:02.5]} 39. Qxb8 {[%clk 0:00:51.1]} 39... Qe1+ {[%clk
0:00:01.3]} 40. Kg2 {[%clk 0:00:51.3]} 1-0